Workbook

Sheet Built-Up Bolted Glulam Column
A1: Design of Built-Up Bolted Glulam Column with Variable Number of Plies (between 2 ply and 5 ply) based on CAN/CSA-O86-09
A3: For EDUCATIONAL PURPOSES ONLY - Not for use as a design aid
A4: Anthony Kwok, Carleton University, Ottawa, Ontario, Canada | K4: April 2014
A6: DESIGN CRITERIA | K6: Printer Friendly
A8: Species | G8: Grade
B9: Spruce-Lodgepole Pine-Jack Pine | G9: 14t-E | L9: =IF(B9="Douglas Fir-Larch","Douglas_Fir_Larch",IF(B9="Spruce-Lodgepole Pine-Jack Pine","Spruce_Lodgepole_Pine_Jack_Pine",IF(B9="Hem-Fir and Douglas Fir-Larch","Hem_Fir_and_Douglas_Fir_Larch","False"))) -> Spruce_Lodgepole_Pine_Jack_Pine
A11: SPECIFIED STRENGTHS AND MODULUS OF ELASTICITY
B12: COMPRESSION PARALLEL | E12: fc = | F12: =IF(B9="Douglas Fir-Larch",30.2,IF(B9="Spruce-Lodgepole Pine-Jack Pine",25.2,"N/A")) -> 25.2 | G12: MPa | I12: Table 6.3
B13: MODULUS OF ELASTICITY | E13: E = | F13: =IF(B9="Douglas Fir-Larch",VLOOKUP(G9,ElasticityModulusDFL,2,FALSE),IF(B9="Spruce-Lodgepole Pine-Jack Pine",VLOOKUP(G9,ElasticityModulusSLPJP,2,FALSE),IF(B9="Hem-Fir and Douglas Fir-Larch",VLOOKUP(G9,ElasticityModulusHFDFL,2,FALSE)))) -> 10700 | G13: MPa | I13: Table 6.3
E14: E05 = | F14: =F13*0.87 -> 9309 | G14: MPa | I14: § 6.5.8.5
A16: MODIFICATION FACTORS
B17: DURATION | E17: Standard Term | G17: KD = | H17: =VLOOKUP(E17,DurationFactor,2,FALSE) -> 1 | I17: § 6.4.1
B18: SYSTEM | E18: Unsupported | G18: KH = | H18: =VLOOKUP(E18,SystemFactor,2,FALSE) -> 1 | I18: § 6.4.3
B19: SERVICE CONDITION | E19: Wet | G19: KSC = | H19: =VLOOKUP(E19,ServiceFactor,2,FALSE) -> 0.75 | I19: § 6.4.2 & Table 6.4.2 | L19: =IF(E19="Dry","2","3") -> 3
B20: TREATMENT | D20: Treated - Unincised <89mm | G20: KT = | H20: =VLOOKUP(D20,TreatmentFactor,L19,FALSE) -> 0.85 | I20: § 6.4.4
B21: MODULUS OF ELASTICITY | G21: KSE = | H21: =VLOOKUP(E19,ModulusElasticity,2,FALSE) -> 0.9 | I21: Table 6.4.2
A23: GEOMETRY AND CONNECTION DETAILS
B24: # OF PLIES | F24: 4
B25: LENGTH OF MEMBER | E25: L = | F25: 2000 | G25: mm
B26: WIDTH | E26: W = | F26: 140 | G26: mm
B27: DEPTHS | E27: D = | F27: 76 | G27: mm
B28: BOLTS CONECTION
C29: BOLT DIAMETER | E29: dF = | F29: 0.125 | G29: in | L29: =IF(F29>=1/4,"True","False") -> False
C30: BOLT SPACING (PAR.) | E30: a = | F30: 100 | G30: mm | L30: =IF(F30<6*F27,"True","False") -> True
C31: BOLT SPACING (PERP.) | E31: c = | F31: 10 | G31: mm | L31: =IF(F31<10*F29*25.4,"True","False") -> True
C32: ROWS OF BOLTS | F32: 1 | L32: =IF(F26<F27*3,"True",IF(F32>=2,"True","False")) -> True
B34: =IF(L29="True",IF(L30="True",IF(L31="True",IF(L32="True","FROM THE SPACING REQUIREMENTS, THE BUILT-UP MEMBER IS ADEQUATELY BOLTED. § 5.5.6.4.3","FROM THE SPACING REQUIREMENTS, THE BUILT-UP MEMBER IS INADEQUATELY BOLTED. § 5.5.6.4.3"),"FROM THE SPACING REQUIREMENTS, THE BUILT-UP MEMBER IS INADEQUATELY BOLTED. § 5.5.6.4.3"),"FROM THE SPACING REQUIREMENTS, THE BUILT-UP MEMBER IS INADEQUATELY BOLTED. § 5.5.6.4.3"),"FROM THE SPACING REQUIREMENTS, THE BUILT-UP MEMBER IS INADEQUATELY BOLTED. § 5.5.6.4.3") -> FROM THE SPACING REQUIREMENTS, THE BUILT-UP MEMBER IS INADEQUATELY BOLTED. § 5.5.6.4.3 | L34: =IF(F29>=(1/4),IF(F30<(6*F27),IF(AND(F26>(3*F27),(F32>=2)),"Adequate","Inadequate"),"Inadequate"),"Inadequate") -> Inadequate
B36: END RESTRAINTS | E36: Fixed Free | G36: Ke = | H36: =VLOOKUP(E36,Dropdowns!A53:B57,2,FALSE) -> 1.2 | I36: Table A.5.5.6.1
A39: UNFACTORED LOADS (+ FOR COMPRESSION)
C40: DEAD | E40: D = | F40: 200 | G40: kN
C41: LIVE | E41: L = | F41: 150 | G41: kN
C42: SNOW | E42: S = | F42: 250 | G42: kN
C43: WIND | E43: W = | F43: 0 | G43: kN
C44: EARTHQUAKE | E44: E = | F44: 0 | G44: kN
A46: LOAD COMBINATIONS (ULS) | E46: Table 4.2.4.1
C47: COMBINATION | E47: FACTORED LOADS | H47: KD | L47: LOAD | N47: CASE #
B48: 1 | C48: 1.4D | F48: =1.4*$F$40 -> 280 | G48: kN | H48: 0.65 | L48: =F48 -> 280 | N48: =B48 -> 1
B49: 2a | C49: 1.25D + 1.5L | F49: =1.25*$F$40 + 1.5*$F$41 -> 475 | G49: kN | H49: 1 | L49: 475 | N49: 2a
B50: 2b | C50: 1.25D + 1.5L + 0.5S | F50: =1.25*$F$40 + 1.5*$F$41 + 0.5*$F$42 -> 600 | G50: kN | H50: 1 | L50: 600 | N50: 2b
B51: 2c | C51: 1.25D + 1.5L + 0.4W | F51: =1.25*$F$40 + 1.5*$F$41 + 0.4*$F$43 -> 475 | G51: kN | H51: 1.15 | L51: 475 | N51: 2c
B52: 2d | C52: 0.9D + 1.5L | F52: =0.9*$F$40+1.5*$F$41 -> 405 | G52: kN | H52: 1 | L52: 405 | N52: 2d
B53: 2e | C53: 0.9D + 1.5L + 0.5S | F53: =0.9*$F$40+1.5*$F$41+0.5*$F$42 -> 530 | G53: kN | H53: 1 | L53: 530 | N53: 2e
B54: 2f | C54: 0.9D + 1.5L + 0.4W | F54: =0.9*$F$40+1.5*$F$41+0.4*$F$43 -> 405 | G54: kN | H54: 1.15 | L54: 405 | N54: 2f
B55: 3a | C55: 1.25D + 1.5S | F55: =1.25*$F$40+1.5*$F$42 -> 625 | G55: kN | H55: 1 | L55: 625 | N55: 3a
B56: 3b | C56: 1.25D + 1.5S + 0.5L | F56: =1.25*$F$40+1.5*$F$42+0.5*$F$41 -> 700 | G56: kN | H56: 1 | L56: 700 | N56: 3b
B57: 3c | C57: 1.25D + 1.5S + 0.4W | F57: =1.25*$F$40+1.5*$F$42+0.4*$F$43 -> 625 | G57: kN | H57: 1.15 | L57: 625 | N57: 3c
B58: 3d | C58: 0.9D + 1.5S | F58: =0.9*$F$40+1.5*$F$42 -> 555 | G58: kN | H58: 1 | L58: 555 | N58: 3d
B59: 3e | C59: 0.9D + 1.5S + 0.5L | F59: =0.9*$F$40+1.5*$F$42+0.5*$F$41 -> 630 | G59: kN | H59: 1 | L59: 630 | N59: 3e
B60: 3f | C60: 0.9D + 1.5S + 0.4W | F60: =0.9*$F$40+1.5*$F$42+0.4*$F$43 -> 555 | G60: kN | H60: 1.15 | L60: 555 | N60: 3f
B61: 4a | C61: 1.25D + 1.4W | F61: =1.25*$F$40+1.4*$F$43 -> 250 | G61: kN | H61: 1.15 | L61: 250 | N61: 4a
B62: 4b | C62: 1.25D + 1.4W + 0.5L | F62: =1.25*$F$40+1.4*$F$43 + 0.5*$F$41 -> 325 | G62: kN | H62: 1.15 | L62: 325 | N62: 4b
B63: 4c | C63: 1.25D + 1.4W + 0.5S | F63: =1.25*$F$40+1.4*$F$43 + 0.5*$F$42 -> 375 | G63: kN | H63: 1.15 | L63: 375 | N63: 4c
B64: 4d | C64: 0.9D + 1.4W | F64: =0.9*$F$40+1.4*$F$43 -> 180 | G64: kN | H64: 1.15 | L64: 180 | N64: 4d
B65: 4e | C65: 0.9D + 1.4W + 0.5L | F65: =0.9*$F$40+1.4*$F$43+0.5*$F$41 -> 255 | G65: kN | H65: 1.15 | L65: 255 | N65: 4e
B66: 4f | C66: 0.9D + 1.4W + 0.5S | F66: =0.9*$F$40+1.4*$F$43+0.5*$F$42 -> 305 | G66: kN | H66: 1.15 | L66: 305 | N66: 4f
B67: 5a | C67: 1.0D + 1.0E | F67: =$F$40+$F$44 -> 200 | G67: kN | H67: 1.15 | L67: 200 | N67: 5a
B68: 5b | C68: 1.0D + 1.0E + 0.5L | F68: =$F$40+$F$44+0.5*$F$41 -> 275 | G68: kN | H68: 1.15 | L68: 275 | N68: 5b
B69: 5c | C69: 1.0D + 1.0E + 0.25S | F69: =$F$40+$F$44+0.25*$F$42 -> 262.5 | G69: kN | H69: 1.15 | L69: 262.5 | N69: 5c
B71: =IF(MIN(L48)<>0,CONCATENATE("THE GOVERNING LOAD CASE FOR LONG TERM DURATIONS IS ",MIN(L48)," kN FOR LOAD CASE ",VLOOKUP(MIN(L48),$L$48:$N$69,2,FALSE),".")) -> THE GOVERNING LOAD CASE FOR LONG TERM DURATIONS IS 280 kN FOR LOAD CASE .
B72: =IF(MIN(F49:F50,F52:F53,F55,F55:F56,F58:F59)<>0,CONCATENATE("THE GOVERNING LOAD CASE FOR STANDARD TERM DURATIONS IS ",MIN(F49:F50,F52:F53,F55,F55:F56,F58:F59)," kN FOR LOAD CASE ",VLOOKUP(MIN(F49:F50,F52:F53,F55,F55:F56,F58:F59),$L$48:$N$69,2,FALSE),".")) -> THE GOVERNING LOAD CASE FOR STANDARD TERM DURATIONS IS 405 kN FOR LOAD CASE .
B73: =IF(MIN(F51,F54,F57,F60:F69)<>0,CONCATENATE("THE GOVERNING LOAD CASE FOR SHORT TERM DURATIONS IS ",MIN(F51,F54,F57,F60:F69)," kN FOR LOAD CASE ",VLOOKUP(MIN(F51,F54,F57,F60:F69),$L$48:$N$69,2,FALSE),".")) -> THE GOVERNING LOAD CASE FOR SHORT TERM DURATIONS IS 180 kN FOR LOAD CASE .
A80: FACTORED RESISTANCE OF BUILT-UP GLULAM MEMBER
A82: Pr = φFcAKzcgKc | J82: § 6.5.8.4.2
A84: STRONG AXIS BUCKLING (Y-Y AXIS) | F84: WEAK AXIS BUCKLING (X-X AXIS)
B86: Ccy = | C86: =IF($L$34="Adequate",$F$25*$H$36/MAX($F$27*$F$24,$F$26),($F$25*$H$36)/MAX($F$27,$F$26)) -> 17.14285714 | F86: Ccx = | G86: =IF($L$34="Adequate",$F$25*$H$36/MIN($F$27*$F$24,$F$26),($F$25*$H$36)/MIN($F$26,$F$27)) -> 31.57894737 | J86: SLENDERNESS RATIO
D88: φ = | E88: 0.8
D89: Fc = | E89: =$F$12*($H$17*$H$18*$H$19*$H$20) -> 16.065 | F89: MPa | J89: SPECIFIED STRENGTH
D90: A = | E90: =IF($L$34="Adequate",$F$24*$F$26*$F$27,$F$26*$F$27) -> 10640 | F90: mm^3 | J90: X - SECTION AREA | L90: Volume of Member
D91: Kzcg = | E91: =IF((0.68*($L$91)^(-0.13))>1,1,(0.68*($L$91)^(-0.13))) -> 1 | J91: VOLUME FACTOR | L91: =($E$90*$F$25)/(1000^3) -> 0.02128 | N91: m^3
B93: Kcx = | C93: =((1+($E$89*$E$91*$C$86^3)/(35*$F$14*$H$21*$H$20))^(-1)) -> 0.7548812742 | F93: Kcy = | G93: =((1+($E$89*$E$91*$G$86^3)/(35*$F$14*$H$21*$H$20))^(-1)) -> 0.3300609395 | J93: SLENDERNESS FACTOR
B94: Pry = | C94: =IF($L$34="Adequate",($E$88*$E$89*$E$90*$E$91*$C$93)/1000,(($E$88*$E$89*$E$90*$E$91*$C$93)/1000)*$F$24) -> 412.9058048 | F94: Prx = | G94: =IF($L$34="Adequate",($E$88*$E$89*$E$90*$E$91*$G$93)/1000,(($E$88*$E$89*$E$90*$E$91*$G$93)/1000)*$F$24) -> 180.5371023 | J94: COMPRESSIVE RESISTANCE | M94: FACTORED LOAD
L95: 0 | M95: =MIN($L$48:$L$69) -> 180
A96: COMMENTS: | L96: 1 | M96: =MIN($L$48:$L$69) -> 180
B97: =IF(C94>G94,"Prx WILL GOVERN SINCE Prx < Pry.","Pry WILL GOVERN SINCE Prx > Pry.") -> Prx WILL GOVERN SINCE Prx < Pry. | L97: 2 | M97: =MIN($L$48:$L$69) -> 180
B98: =IF(L34="Inadequate","SINCE THE MEMBERS ARE INADEQUATELY BOLTED, THE RESISTANCE OF EACH MEMBER WAS MULTIPLIED BY THE COLLECTIVE NUMBER OF PLIES.","THE BUILT-UP MEMBER WAS ADEQUATELY BOLTED.") -> SINCE THE MEMBERS ARE INADEQUATELY BOLTED, THE RESISTANCE OF EACH MEMBER WAS MULTIPLIED BY THE COLLECTIVE NUMBER OF PLIES. | L98: 3 | M98: 180
L99: 4 | M99: 180
B100: =CONCATENATE("THEREFORE, THE VALUE FOR Prx is ",TEXT(G94,0)," kN, AND Pry IS ",TEXT(C94,0)," kN.") -> THEREFORE, THE VALUE FOR Prx is 181 kN, AND Pry IS 413 kN. | L100: 5 | M100: 180
B101: =IF(MIN(G94,C94)>MIN(F48:F69),CONCATENATE("THE RESISTANCE OF THE BUILT-UP MEMBER IS SUFFICIENT ENOUGH TO RESIST THE GOVERNING FACTORED LOAD. ", TEXT(MIN(G94,C94),0)," kN > ",MIN(F48:F69), " kN"),CONCATENATE("THE RESISTANCE OF THE BUILT-UP MEMBER IS NOT ENOUGH TO RESIST THE GOVERNING FACTORED LOAD. ", TEXT(MIN(G94,C94),0)," kN < ",MIN(F48:F69), " kN")) -> THE RESISTANCE OF THE BUILT-UP MEMBER IS SUFFICIENT ENOUGH TO RESIST THE GOVERNING FACTORED LOAD. 181 kN > 180 kN | L101: 6 | M101: 180
L102: Adequate
L103: PLIES | M103: Ccy | N103: Ccx | O103: A | P103: Kczg | Q103: Kcy | R103: Kcx | S103: Pry | T103: Prx | U103: Governing Case
A104: ANALYSIS | L104: 2 | M104: =$F$25*$H$36/MAX($F$27*L104,$F$26) -> 15.78947368 | N104: =$F$25*$H$36/MIN($F$27*L104,$F$26) -> 17.14285714 | O104: =L104*$F$26*$F$27 -> 21280 | P104: =IF((0.68*((O104*$F$25)/1000^3)^(-0.13))>1,1,(0.68*((O104*$F$25)/1000^3)^(-0.13))) -> 1 | Q104: =((1+($E$89*P104*M104^3)/(35*$F$14*$H$21*$H$20))^(-1)) -> 0.797627573 | R104: =((1+($E$89*$E$91*N104^3)/(35*$F$14*$H$21*$H$20))^(-1)) -> 0.7548812742 | S104: =($E$88*$E$89*O104*$P104*Q104)/1000 -> 218.1436116 | T104: =($E$88*$E$89*O104*$P104*R104)/1000 -> 206.4529024 | U104: =MIN(T104) -> 206.4529024
L105: 3 | M105: =$F$25*$H$36/MAX($F$27*L105,$F$26) -> 10.52631579 | N105: =$F$25*$H$36/MIN($F$27*L105,$F$26) -> 17.14285714 | O105: =L105*$F$26*$F$27 -> 31920 | P105: 0.9724042281 | Q105: 0.9318785976 | R105: =((1+($E$89*$E$91*N105^3)/(35*$F$14*$H$21*$H$20))^(-1)) -> 0.7548812742 | S105: =($E$88*$E$89*O105*$P105*Q105)/1000 -> 371.7404116 | T105: =($E$88*$E$89*O105*$P105*R105)/1000 -> 301.1335128 | U105: 301.1335128
L106: 4 | M106: 7.894736842 | N106: 17.14285714 | O106: 42560 | P106: 0.9367092367 | Q106: 0.971149581 | R106: =((1+($E$89*$E$91*N106^3)/(35*$F$14*$H$21*$H$20))^(-1)) -> 0.7548812742 | S106: =($E$88*$E$89*O106*$P106*Q106)/1000 -> 497.5804014 | T106: =($E$88*$E$89*O106*$P106*R106)/1000 -> 386.7726813 | U106: 386.7726813
L107: 5 | M107: 6.315789474 | N107: 17.14285714 | O107: 53200 | P107: 0.9099268935 | Q107: 0.9854397863 | R107: =((1+($E$89*$E$91*N107^3)/(35*$F$14*$H$21*$H$20))^(-1)) -> 0.7548812742 | S107: =($E$88*$E$89*O107*$P107*Q107)/1000 -> 613.0825327 | T107: =($E$88*$E$89*O107*$P107*R107)/1000 -> 469.6426203 | U107: 469.6426203
L109: Inadequate
L110: PLIES | M110: Ccy | N110: Ccx | O110: A | P110: Kczg | Q110: Kcy | R110: Kcx | S110: Pry | T110: Prx | U110: Governing Case
L111: 2 | M111: =$F$25*$H$36/MAX($F$27,$F$26) -> 17.14285714 | N111: =$F$25*$H$36/MIN($F$27,$F$26) -> 31.57894737 | O111: =$F$26*$F$27 -> 10640 | P111: =IF((0.68*((O111*$F$25)/1000^3)^(-0.13))>1,1,(0.68*((O111*$F$25)/1000^3)^(-0.13))) -> 1 | Q111: =((1+($E$89*P111*M111^3)/(35*$F$14*$H$21*$H$20))^(-1)) -> 0.7548812742 | R111: =((1+($E$89*P111*N111^3)/(35*$F$14*$H$21*$H$20))^(-1)) -> 0.3300609395 | S111: =($E$88*$E$89*O111*$P111*Q111)/1000 -> 103.2264512 | T111: =($E$88*$E$89*O111*$P111*R111)/1000 -> 45.13427559 | U111: =MIN(T111)*L111 -> 90.26855117
L112: 3 | M112: =$F$25*$H$36/MAX($F$27,$F$26) -> 17.14285714 | N112: =$F$25*$H$36/MIN($F$27,$F$26) -> 31.57894737 | O112: =$F$26*$F$27 -> 10640 | P112: =IF((0.68*((O112*$F$25)/1000^3)^(-0.13))>1,1,(0.68*((O112*$F$25)/1000^3)^(-0.13))) -> 1 | Q112: =((1+($E$89*P112*M112^3)/(35*$F$14*$H$21*$H$20))^(-1)) -> 0.7548812742 | R112: =((1+($E$89*P112*N112^3)/(35*$F$14*$H$21*$H$20))^(-1)) -> 0.3300609395 | S112: =($E$88*$E$89*O112*$P112*Q112)/1000 -> 103.2264512 | T112: =($E$88*$E$89*O112*$P112*R112)/1000 -> 45.13427559 | U112: =MIN(T112)*L112 -> 135.4028268
L113: 4 | M113: 17.14285714 | N113: 31.57894737 | O113: 10640 | P113: 1 | Q113: =((1+($E$89*P113*M113^3)/(35*$F$14*$H$21*$H$20))^(-1)) -> 0.7548812742 | R113: 0.3300609395 | S113: =($E$88*$E$89*O113*$P113*Q113)/1000 -> 103.2264512 | T113: =($E$88*$E$89*O113*$P113*R113)/1000 -> 45.13427559 | U113: 180.5371023
L114: 5 | M114: 17.14285714 | N114: 31.57894737 | O114: 10640 | P114: 1 | Q114: =((1+($E$89*P114*M114^3)/(35*$F$14*$H$21*$H$20))^(-1)) -> 0.7548812742 | R114: 0.3300609395 | S114: =($E$88*$E$89*O114*$P114*Q114)/1000 -> 103.2264512 | T114: =($E$88*$E$89*O114*$P114*R114)/1000 -> 45.13427559 | U114: 225.6713779
A117: Reference
A118: Canadian Standards Association (CSA) (2010) O86-09 Engineering design in wood with Update No.1.
B119: Mississauga, ON: Canadian Standards Association.

Sheet Dropdowns
A1: Types and Grades
A2: Douglas Fir-Larch | B2: Spruce-Lodgepole Pine-Jack Pine | C2: Hem-Fir and Douglas Fir-Larch | E2: Grades | I2: Douglas_Fir_Larch | J2: Spruce_Lodgepole_Pine_Jack_Pine | K2: Hem_Fir_and_Douglas_Fir_Larch
A3: 24f-E | B3: 20f-E | C3: 24f-E | E3: Douglas Fir-Larch | I3: 24f-E | J3: 20f-E | K3: 24f-E
A4: 24f-EX | B4: 20f-EX | C4: 24-EX | E4: Spruce-Lodgepole Pine-Jack Pine | I4: 24f-EX | J4: 20f-EX | K4: 24-EX
A5: 20f-E | B5: 14t-E | E5: Hem-Fir and Douglas Fir-Larch | I5: 20f-E | J5: 14t-E
A6: 20f-EX | B6: 12c-E | I6: 20f-EX | J6: 12c-E
A7: 18t-E | I7: 18t-E
A8: 16c-E | I8: 16c-E
A10: Grade | B10: Modulus of Elasticity
A11: 24f-E | B11: 12800
A12: 24f-EX | B12: 12800
A13: 20f-E | B13: 12400
A14: 20f-EX | B14: 12400
A15: 18t-E | B15: 13800
A16: 16c-E | B16: 12400
A17: 20f-E | B17: 10300
A18: 20f-EX | B18: 10300
A19: 14t-E | B19: 10700
A20: 12c-E | B20: 9700
A21: 24f-E | B21: 13100
A22: 24-EX | B22: 13100
A24: Duration Factor
A25: Short Term | B25: 1.15
A26: Standard Term | B26: 1
A27: Long Term | B27: 0.65
A29: System Factor
A30: Mutually Supported | B30: 1
A31: Unsupported | B31: 1
A33: Service Condition Factor
A34: Wet | B34: 0.75
A35: Dry | B35: 1
A37: Treatment Factor
A38: Untreated | B38: 1 | C38: 1
A39: Treated - Unincised | B39: 1 | C39: 1
A40: Treated - Unincised <89mm | B40: 0.75 | C40: 0.85
A42: Number of Plies
A43: 2
A44: 3
A45: 4
A46: 5
A48: Modulus of Elasticity
A49: Dry | B49: 1
A50: Wet | B50: 0.9
A52: End Restraints | B52: Ke
A53: Fixed Ends | B53: 0.65
A54: Fixed - Pinned | B54: 0.8
A55: Pinned Ends | B55: 1
A56: Fixed Free | B56: 1.2
A57: Pinned Free | B57: 2
